{"text_format":"1","workbook":"xlsx","n_sheets":2,"sheets":["Técnicos","datos"],"not_rendered":{"charts":0,"images":0,"macros":1,"external_links":0,"defined_names":1,"comments":0,"pivot_tables":0},"unopened":[],"bounds":{"document_bytes":16777216,"sheet_cells":100000,"rows_first":2000,"rows_last":500,"rows_between":2000,"halvings":0,"cell_chars":16384,"cell_head_chars":4096},"cells_cut":0,"cells_raw":0,"read":"whole","date_system":"1900"}

{"sheet":"Técnicos","index":0,"n_rows":30,"n_cols":17,"rows_kept":30,"cut":false,"hidden":false,"merged":[[1,5,1,8],[1,10,1,11]]}
["SUBVENCIÓN A EMPRESAS DE INSERCIÓN SOCIOLABORAL - ASISTENCIA TÉCNICA",null,null,null,null,null,null,null,null,null,null,null,null,null,null,"ESKATUTAKOA, GUZTIRA:"]
["URTEA:",2025,"HILABETEA:","OTSAILA","ENPRESA:",null,null,null,null,null,"DIRULAGUNTZA KALKULATZEKO OINARRIA:",null,null,null,null,{"$f":"SUM(P5:P30)","v":0}]
[]
["ZK","IFZ/AIZ","EUSKARRI ZK.","1. ABIZENA","2. ABIZENA","IZENA","IFZ/AIZ\nORDEZTUTAKO TEKNIKARIA","ABE-KO BAJAREN DATA","ABE-KO ALTAREN DATA","TEKNIKARI MOTA","LANALDIAREN %","ALTAREN DATA","BAJAREN DATA","EGUN DIRUZ LAGUNGARRIAK","JUSTIFIKATUTAKO ZENBATEKOA","ESKATUTAKO ZENBATEKOA","OHARRAK"]
[{"$f":"IF(COUNTA(B5),COUNTA($B$5:B5),\"\")","v":""}]
[{"$f":"IF(COUNTA(B6),COUNTA($B$5:B6),\"\")","v":""}]
[{"$f":"IF(COUNTA(B7),COUNTA($B$5:B7),\"\")","v":""}]
[{"$f":"IF(COUNTA(B8),COUNTA($B$5:B8),\"\")","v":""}]
[{"$f":"IF(COUNTA(B9),COUNTA($B$5:B9),\"\")","v":""}]
[{"$f":"IF(COUNTA(B10),COUNTA($B$5:B10),\"\")","v":""}]
[{"$f":"IF(COUNTA(B11),COUNTA($B$5:B11),\"\")","v":""}]
[{"$f":"IF(COUNTA(B12),COUNTA($B$5:B12),\"\")","v":""}]
[{"$f":"IF(COUNTA(B13),COUNTA($B$5:B13),\"\")","v":""}]
[{"$f":"IF(COUNTA(B14),COUNTA($B$5:B14),\"\")","v":""}]
[{"$f":"IF(COUNTA(B15),COUNTA($B$5:B15),\"\")","v":""}]
[{"$f":"IF(COUNTA(B16),COUNTA($B$5:B16),\"\")","v":""}]
[{"$f":"IF(COUNTA(B17),COUNTA($B$5:B17),\"\")","v":""}]
[{"$f":"IF(COUNTA(B18),COUNTA($B$5:B18),\"\")","v":""}]
[{"$f":"IF(COUNTA(B19),COUNTA($B$5:B19),\"\")","v":""}]
[{"$f":"IF(COUNTA(B20),COUNTA($B$5:B20),\"\")","v":""}]
[{"$f":"IF(COUNTA(B21),COUNTA($B$5:B21),\"\")","v":""}]
[{"$f":"IF(COUNTA(B22),COUNTA($B$5:B22),\"\")","v":""}]
[{"$f":"IF(COUNTA(B23),COUNTA($B$5:B23),\"\")","v":""}]
[{"$f":"IF(COUNTA(B24),COUNTA($B$5:B24),\"\")","v":""}]
[{"$f":"IF(COUNTA(B25),COUNTA($B$5:B25),\"\")","v":""}]
[{"$f":"IF(COUNTA(B26),COUNTA($B$5:B26),\"\")","v":""}]
[{"$f":"IF(COUNTA(B27),COUNTA($B$5:B27),\"\")","v":""}]
[{"$f":"IF(COUNTA(B28),COUNTA($B$5:B28),\"\")","v":""}]
[{"$f":"IF(COUNTA(B29),COUNTA($B$5:B29),\"\")","v":""}]
[{"$f":"IF(COUNTA(B30),COUNTA($B$5:B30),\"\")","v":""}]

{"sheet":"datos","index":1,"n_rows":17,"n_cols":4,"rows_kept":17,"cut":false,"hidden":true,"merged":[]}
[]
[]
[]
[]
[null,"Tipo Técnico","año","mes"]
[null,"Esku hartzea eta laneratzea",2024,"URTARRILA"]
[null,"Lagun egitea",2025,"OTSAILA"]
[null,null,null,"MARTXOA"]
[null,null,null,"APIRILA"]
[null,null,null,"MAIATZA"]
[null,null,null,"EKAINA"]
[null,null,null,"UZTAILA"]
[null,null,null,"ABUZTUA"]
[null,null,null,"IRAILA"]
[null,null,null,"URRIA"]
[null,null,null,"AZAROA"]
[null,null,null,"ABENDUA"]